bitfinex/quotes_ETHUSD_20250214
["timestamp","ask_amount","ask_price","bid_price","bid_amount"]
[1739500600341,3.70096,2702.0,2701.4,3.7017]
[1739500601148,3.70096,2702.0,2701.3,4.15341515]
[1739500601348,3.70131,2701.8,2701.1,3.7021]
[1739500601548,3.70091,2702.1,2701.0,4.51862]
[1739500601707,3.70091,2702.1,2701.5,3.70155]
[1739500602647,3.70091,2702.1,2701.6,3.70147]
[1739500602878,0.8202,2701.7,2701.1,3.7021]
[1739500603048,0.8202,2701.7,2701.2,3.70204]
[1739500603249,4.5216,2701.7,2701.1,3.7021]
[1739500603777,4.5216,2701.7,2701.2,0.15019635]
[1739500604079,5.566867,2701.7,2701.2,0.15019635]
[1739500604289,3.70173,2701.5,2700.9,3.70238]
[1739500604440,5.566807,2701.7,2701.3,0.15019635]
[1739500604776,5.566807,2701.7,2700.7,0.8055]
[1739500604777,5.566807,2701.7,2701.1,3.70211]
[1739500604982,0.7795807,2701.6,2701.4,0.15019635]
[1739500605154,0.7795807,2701.6,2701.1,3.70211]
[1739500605351,0.7795807,2701.6,2701.5,0.15019635]
[1739500605540,0.7795807,2701.6,2700.9,3.70239]
[1739500605541,3.70173,2701.5,2700.9,3.70239]
[1739500605960,4.4810907,2701.6,2700.9,3.70239]
[1739500606788,4.4810907,2701.6,2701.0,3.70229]
[1739500608279,0.7795807,2701.6,2701.1,3.70218]
[1739500608470,1.0972,2701.7,2701.2,3.70205]
[1739500608651,1.0972,2701.7,2701.1,3.70218]
[1739500608852,4.79858,2701.7,2701.1,3.70218]
[1739500609180,1.0972,2701.7,2701.2,3.70205]
[1739500609546,1.0972,2701.7,2701.3,3.70191]
[1739500609745,3.70151,2701.6,2700.9,3.7024]
[1739500609948,3.70151,2701.6,2700.7,0.8055]
[1739500609949,3.70178,2701.4,2700.7,0.8055]
[1739500610265,3.70201,2701.3,2700.7,4.50814]
[1739500610469,3.70178,2701.4,2700.8,3.70258]
[1739500611208,3.70195,2701.3,2700.8,3.70258]
[1739500611561,3.70178,2701.4,2700.8,3.70258]
[1739500611757,2.229,2701.3,2700.9,3.70237]
[1739500611966,0.673968,2701.4,2700.8,3.70258]
[1739500612898,4.375758,2701.4,2700.8,7.4051]
[1739500613101,4.375758,2701.4,2700.8,3.70252]
[1739500613401,4.375758,2701.4,2700.8,3.70254]
[1739500614693,4.375758,2701.4,2700.8,7.40507]
[1739500614991,4.375758,2701.4,2700.8,3.70253]
[1739500615898,4.375758,2701.4,2700.6,3.70281]
[1739500616058,4.53443,2701.1,2700.6,3.70279]
[1739500616265,4.53443,2701.1,2700.6,7.40558]
[1739500616266,0.8322,2701.1,2700.6,7.40558]
[1739500616466,0.8322,2701.1,2700.6,3.70279]
[1739500616724,0.8322,2701.1,2700.6,7.40557]
[1739500617079,4.53444,2701.1,2700.6,3.70278]
[1739500617461,0.8322,2701.1,2700.6,3.70278]
[1739500617662,0.8322,2701.1,2700.4,3.70308]
[1739500617878,1.285627,2701.1,2700.4,3.70308]
[1739500618077,0.8322,2701.1,2700.4,3.70308]
[1739500618378,3.70255,2700.9,2700.4,3.70305]
[1739500618585,4.53441,2701.1,2700.4,3.70305]
[1739500618802,8.23669,2701.1,2700.5,3.85388501]
[1739500619187,4.53441,2701.1,2700.5,3.85388501]
[1739500619588,8.2367,2701.1,2700.5,3.85388501]
[1739500619816,4.53441,2701.1,2700.5,3.85388501]
[1739500620130,8.913061,2701.1,2700.5,3.85388501]
[1739500620338,5.210751,2701.1,2700.6,3.70279]
[1739500620548,5.210751,2701.1,2700.5,3.70293]
[1739500620836,5.210751,2701.1,2700.7,0.15088501]
[1739500620983,5.210751,2701.1,2700.5,3.70293]
[1739500621183,3.70246,2700.9,2700.8,0.15088501]
[1739500621612,3.70261,2700.8,2700.3,3.7032]
[1739500621762,3.70261,2700.8,2700.1,3.70347]
[1739500621922,0.5211001,2700.9,2700.1,3.70356]
[1739500622127,3.70285,2700.7,2700.1,7.40704]
[1739500622323,0.8287,2700.8,2700.1,3.70348]
[1739500622523,4.47802,2700.5,2699.9,3.70382]
[1739500623063,0.775,2700.5,2699.5,0.7709]
[1739500623360,0.7506,2700.1,2699.6,3.70423]
[1739500624653,0.7506,2700.1,2699.6,4.445103]
[1739500624843,0.7506,2700.1,2699.8,7.40782]
[1739500625225,3.1614094,2700.6,2700.0,3.7037]
[1739500625445,0.8273,2700.5,2700.1,3.70348]
[1739500625647,0.8273,2700.5,2700.2,3.7034]
[1739500625960,4.2235901,2700.9,2700.3,3.70327]
[1739500625961,6.1473,2700.8,2700.3,3.70327]
[1739500626153,6.1473,2700.8,2700.3,0.7996]
[1739500626354,5.32,2700.8,2700.4,4.153431]
[1739500626691,5.32,2700.8,2700.5,3.703]
[1739500626842,3.97947,2700.9,2700.4,3.70306]
[1739500627044,3.97947,2700.9,2700.3,4.50287]
[1739500627245,0.7961,2701.0,2700.3,0.7996]
[1739500627558,0.7961,2701.0,2700.4,3.70313]
[1739500627754,1.88031004,2701.0,2700.4,7.40618]
[1739500627979,1.88031004,2701.0,2700.5,3.70299]
[1739500628141,1.88031004,2701.0,2700.7,3.70266]
[1739500628342,0.7961,2701.0,2700.7,3.70266]
[1739500628568,0.7961,2701.0,2700.5,3.70294]
[1739500629384,0.7961,2701.0,2700.5,3.7029]
[1739500629559,0.7961,2701.0,2700.6,0.0370273]
[1739500629757,0.8247,2701.2,2700.3,0.7996]
[1739500629962,4.52684,2701.2,2700.5,3.70297]
[1739500630157,0.675584,2701.1,2700.5,3.70297]
[1739500630374,3.70233,2701.0,2700.5,3.70297]
[1739500631063,0.675584,2701.1,2700.5,3.70293]
[1739500631382,0.8247,2701.2,2700.7,3.70265]
[1739500632148,4.52679,2701.2,2700.7,3.70265]
[1739500633080,4.52679,2701.2,2700.5,3.70298]
[1739500633275,4.52679,2701.2,2700.5,3.7029]
[1739500633496,4.52679,2701.2,2700.6,3.70284]
[1739500633676,5.377354,2701.2,2700.6,3.70284]
[1739500633992,5.377354,2701.2,2700.6,3.85427143]
[1739500634193,5.377354,2701.2,2700.6,0.15143143]
[1739500634194,3.70237,2701.0,2700.6,0.15143143]
[1739500634498,4.53034,2700.7,2700.1,3.70351]
[1739500634681,0.8276,2700.7,2700.1,3.70351]
[1739500634859,0.8276,2700.7,2700.2,3.70341]
[1739500635479,3.70291,2700.6,2700.0,3.70359]
[1739500635861,3.70291,2700.6,2700.1,3.70356]
[1739500636058,3.70291,2700.6,2699.9,3.70371]
[1739500636253,3.70291,2700.6,2700.0,3.70367]
[1739500636500,0.8079,2700.2,2699.6,4.51968]
[1739500637003,0.8079,2700.2,2699.6,8.22383]
[1739500637196,0.8079,2700.2,2699.6,4.51965]
[1739500637353,0.8079,2700.2,2699.6,3.70415]
[1739500637897,3.70337,2700.3,2699.2,3.70475]
[1739500637898,4.51518,2700.0,2699.2,3.70475]
[1739500638058,3.70385,2699.9,2699.2,3.70475]
[1739500638254,3.704,2699.8,2699.2,3.70475]
[1739500638484,0.8114,2699.6,2699.1,0.7952]
[1739500639073,0.8114,2699.6,2699.1,3.70492]
[1739500639269,0.8114,2699.6,2698.9,3.70511]
[1739500639474,0.8114,2699.6,2699.0,3.70502]
[1739500639670,0.8114,2699.6,2698.9,0.820559]
[1739500639896,0.8114,2699.6,2699.0,3.70504]
[1739500640098,4.51566,2699.6,2699.0,3.70504]
[1739500640305,0.8114,2699.6,2698.9,0.820559]
[1739500640514,3.70439,2699.5,2698.9,4.525749]
[1739500640690,4.51573,2699.6,2698.9,4.525749]
[1739500640898,4.155983,2699.5,2698.7,5.25862435]
[1739500641218,0.8114,2699.4,2698.7,3.70539]
[1739500641414,0.8114,2699.4,2698.9,3.70521]
[1739500641779,4.51596,2699.4,2698.8,3.70533]
[1739500641973,4.51596,2699.4,2698.9,3.70521]
[1739500641974,0.8114,2699.4,2698.9,3.70521]
[1739500642817,0.8114,2699.4,2699.0,3.70506]
[1739500643316,0.8114,2699.4,2698.9,3.70521]
[1739500643522,0.8114,2699.4,2698.9,3.70512]
[1739500643829,0.8114,2699.4,2698.9,7.41023]
[1739500644143,0.8114,2699.4,2699.0,3.70504]
[1739500644325,0.8114,2699.4,2699.0,0.03705054]
[1739500644481,1.0366,2699.6,2699.2,3.70479]
[1739500644814,0.0075,2700.1,2699.4,3.7044]
[1739500644815,0.7596,2699.9,2699.4,3.7044]
[1739500645021,0.7596,2699.9,2699.6,3.70424]
[1739500645180,0.7596,2699.9,2699.8,3.70397]
[1739500645380,0.7596,2700.2,2699.8,3.70397]
[1739500646902,5.32,2700.3,2700.0,3.70359]
[1739500647089,0.7567,2700.4,2700.0,3.70359]
[1739500647713,0.7567,2700.4,2700.1,0.14122525]
[1739500648131,0.7567,2700.4,2699.9,3.70376]
[1739500648428,0.7567,2700.4,2700.2,0.14122525]
[1739500648625,0.7567,2700.4,2699.9,3.70376]
[1739500648784,0.7567,2700.4,2700.3,0.14122525]
[1739500648985,0.7567,2700.4,2700.1,3.74057465]
[1739500649328,0.7567,2700.4,2700.0,7.40724]
[1739500649488,0.8247,2700.6,2700.2,0.14122525]
[1739500649889,0.8247,2700.6,2700.0,3.70358]
[1739500650103,0.8247,2700.6,2700.1,0.14122525]
[1739500650513,0.8247,2700.6,2700.1,3.84478525]
[1739500650725,0.8247,2700.6,2700.3,3.70328]
[1739500650942,5.32,2700.7,2700.3,3.70328]
[1739500651229,5.32,2700.7,2700.4,3.84435525]
[1739500651604,5.875,2701.0,2700.6,3.70279]
[1739500651923,0.8141,2701.1,2700.7,0.14122525]
[1739500652406,4.51638,2701.1,2700.7,0.14122525]
[1739500652604,3.70241,2701.0,2700.3,3.70329]
[1739500652804,0.8141,2701.1,2700.8,0.14122525]
[1739500653018,5.65354994,2701.1,2700.5,3.70295]
[1739500653225,0.8141,2701.1,2700.9,0.14122525]
[1739500653434,0.8141,2701.1,2700.7,3.70272]
[1739500653616,0.8141,2701.1,2701.0,0.14122525]
[1739500653811,0.8141,2701.1,2700.7,3.70272]
[1739500654013,0.8141,2701.1,2701.0,0.14122525]
[1739500654226,0.8141,2701.1,2700.5,7.40585]
[1739500654430,0.8141,2701.1,2701.0,0.14122525]
[1739500654904,0.8141,2701.1,2700.6,3.70287]
[1739500655413,0.8141,2701.1,2700.7,0.14164495]
[1739500656248,0.8141,2701.1,2700.7,3.84435495]
[1739500658546,0.8141,2701.1,2700.7,0.14164495]
[1739500658719,3.70245,2701.0,2700.7,0.14164495]
[1739500658922,3.70247,2700.9,2700.3,3.7032]
[1739500659243,4.967928,2701.1,2700.8,0.14164495]
[1739500659620,4.967928,2701.1,2700.5,3.70299]
[1739500659802,4.967928,2701.1,2700.9,0.14164495]
[1739500659999,4.967928,2701.1,2700.5,3.70299]
[1739500660229,4.967928,2701.1,2701.0,0.14090813]
[1739500660444,4.967928,2701.1,2700.5,3.70299]
[1739500660745,4.967928,2701.1,2701.0,0.14090813]
[1739500660943,4.967928,2701.1,2700.5,3.70299]
[1739500661133,4.967928,2701.1,2701.0,0.14090813]
[1739500661335,4.967928,2701.1,2700.5,3.70299]
[1739500661530,4.967928,2701.1,2701.0,0.14090813]
[1739500661738,4.967928,2701.1,2700.5,3.70299]
[1739500662047,4.967928,2701.1,2701.0,0.14090813]
[1739500662048,4.967908,2701.1,2701.0,0.14090813]
[1739500662456,3.70251,2700.9,2700.3,3.70318]
[1739500662753,3.70251,2700.9,2700.4,3.70312]
[1739500663858,3.70251,2700.9,2700.5,0.14092397]
[1739500664059,4.967908,2701.1,2700.5,3.84390397]
[1739500664524,8.670188,2701.1,2700.5,3.84390397]
[1739500664912,1.265718,2701.1,2700.6,3.7028]
[1739500665110,0.8141,2701.1,2700.6,3.7028]
[1739500665343,4.51634,2701.1,2700.7,0.14092397]
[1739500666779,3.70235,2701.0,2700.4,3.70306]
[1739500666992,3.70235,2701.0,2700.8,0.14092397]
[1739500667145,3.70235,2701.0,2700.4,3.70306]
[1739500667342,3.70257,2700.9,2700.3,3.70328]
[1739500667583,0.798,2700.7,2700.5,0.14092397]
[1739500667756,0.798,2700.7,2700.2,3.70337]
[1739500668081,4.50078,2700.7,2700.6,0.14092397]
[1739500668284,1.618349,2700.7,2700.3,3.70317]
[1739500668486,0.798,2700.7,2700.6,0.14092397]
[1739500668973,0.798,2700.7,2700.3,7.40636]
[1739500669137,0.798,2700.7,2700.6,0.14092397]
[1739500669342,0.798,2700.7,2700.3,7.40637]
[1739500669540,0.798,2700.7,2700.6,0.14092397]
[1739500669887,0.798,2700.7,2700.3,3.70317]
[1739500670190,0.798,2700.7,2700.3,7.40637]
[1739500670369,0.798,2700.7,2700.4,0.14092397]
[1739500670560,0.798,2700.7,2700.4,3.84407397]
[1739500670981,0.798,2700.7,2700.4,0.14092397]
[1739500671194,0.7657,2701.0,2700.6,3.70288]
[1739500671348,0.7657,2701.0,2700.7,3.7027]
[1739500671549,0.7657,2701.0,2700.7,3.84379029]
[1739500672457,0.7657,2701.0,2700.7,0.14109029]
[1739500672860,0.7657,2701.0,2700.6,3.70287]
[1739500673373,0.7657,2701.0,2700.7,0.14109029]
[1739500679182,0.7657,2701.0,2700.7,3.84372029]
[1739500679390,0.7657,2701.0,2700.7,0.14109029]
[1739500681827,2.229,2700.9,2700.7,0.14109029]
[1739500682000,0.7657,2701.0,2700.7,0.14109029]
[1739500683452,0.7657,2701.0,2700.7,3.84382029]
[1739500684340,0.8,2701.3,2700.8,3.70251]
[1739500684631,2.80360703,2701.3,2700.9,0.14090018]
[1739500684788,0.8,2701.3,2701.0,3.7023]
[1739500685185,0.8,2701.3,2701.1,0.14088434]
[1739500685740,0.7882,2701.5,2701.1,0.14088434]
[1739500686041,6.1082,2701.8,2701.5,3.7016]
[1739500686264,0.7872,2702.1,2701.6,3.7015]
[1739500686543,0.7872,2702.1,2701.6,0.14058342]
[1739500686851,3.70097,2702.0,2701.6,0.14058342]
[1739500687046,4.48811,2702.1,2701.6,0.14058342]
[1739500687244,3.70114,2701.9,2701.3,3.70185]
[1739500687434,3.70114,2701.9,2701.7,0.14058342]
[1739500687742,3.70113,2701.9,2701.3,3.70182]
[1739500687902,3.70091,2702.1,2701.4,0.90078342]
[1739500688101,3.70091,2702.1,2701.5,4.16185734]
[1739500688517,3.70091,2702.1,2701.5,7.86341734]
[1739500688700,3.70091,2702.1,2701.6,0.14058342]
[1739500688898,5.32,2702.3,2701.8,3.70111]
[1739500689170,5.32,2702.3,2701.9,4.831311]
[1739500689387,5.32,2702.3,2701.9,4.97189442]
[1739500690362,0.7732,2702.6,2701.9,1.27089442]
[1739500690565,0.7732,2702.6,2702.1,3.70073]
[1739500690986,0.7732,2702.6,2702.2,0.14006888]
[1739500691280,4.47334,2702.6,2702.2,0.14006888]
[1739500691439,0.7732,2702.6,2702.2,0.14006888]
[1739500691771,3.7003,2702.5,2702.2,0.14006888]
[1739500691940,0.7732,2702.6,2702.2,0.14006888]
[1739500692126,0.7732,2702.6,2702.0,3.70082]
[1739500692321,0.7732,2702.6,2702.1,0.816208]
[1739500692526,0.7732,2702.6,2702.1,0.95618192]
[1739500692723,0.7732,2702.6,2702.1,4.65698192]
[1739500694132,4.47347,2702.6,2702.1,0.95618192]
[1739500694623,3.70036,2702.5,2702.1,0.13997392]
[1739500694828,3.70077,2702.2,2701.7,0.7797]
[1739500695180,4.51752,2702.1,2701.5,4.48134]
[1739500695463,0.8167,2702.1,2701.5,4.48125]
[1739500695821,0.8167,2702.1,2701.6,0.448125]
[1739500696024,3.70098,2702.0,2701.5,4.48125]
[1739500697129,3.70127,2701.8,2701.3,0.7905]
[1739500697333,7.40263,2701.8,2701.1,4.49266]
[1739500697638,3.70143,2701.7,2701.1,4.49266]
[1739500698095,4.52408,2701.6,2701.0,3.70229]
[1739500698387,4.52408,2701.6,2701.0,4.59569137]
[1739500698747,3.70168,2701.5,2701.0,4.59573137]
[1739500699186,3.70168,2701.5,2700.8,0.7905]
[1739500699370,3.70184,2701.4,2700.8,4.49309]
[1739500699568,3.70184,2701.4,2700.7,3.70267]
[1739500699737,3.70184,2701.4,2700.7,3.70261]
[1739500700130,3.70184,2701.4,2700.7,7.40524]
[1739500700488,3.70184,2701.4,2700.8,3.70255]
[1739500702289,3.70184,2701.4,2700.7,3.70261]
[1739500702595,0.8074,2701.2,2700.7,4.151921]
[1739500702747,4.50956,2701.2,2700.7,0.449311]
[1739500703493,4.50956,2701.2,2700.5,3.70291]
[1739500703904,3.70221,2701.1,2700.5,3.70291]
[1739500704597,4.50956,2701.2,2700.5,7.40579]
[1739500704894,3.70219,2701.1,2700.3,4.53028]
[1739500705044,3.70253,2700.9,2700.3,4.53028]
[1739500705686,3.70253,2700.9,2700.3,4.53037]
[1739500705848,7.40511,2700.9,2700.2,3.70337]
[1739500706048,3.70263,2700.8,2700.2,3.70337]
[1739500706250,3.70253,2700.9,2700.3,3.70325]
[1739500706753,3.70253,2700.9,2700.4,3.70314]
[1739500706955,3.70253,2700.9,2700.3,3.70325]
[1739500707589,0.8074,2701.0,2700.1,4.53059]
[1739500707890,3.70303,2700.5,2700.0,3.70369]
[1739500708087,0.8074,2700.6,2700.0,3.70369]
[1739500708292,0.8074,2700.6,2700.2,3.70338]
[1739500708482,0.8074,2700.6,2700.2,4.444083]
[1739500708657,0.8074,2700.6,2700.3,0.13167232]
[1739500709265,0.8074,2700.6,2700.3,3.83495232]
[1739500709589,0.8074,2700.6,2700.3,0.13167232]
[1739500711194,0.8074,2700.6,2700.3,3.83487232]
[1739500711569,8.18635,2700.9,2700.3,3.83487232]
[1739500711765,9.032585,2700.9,2700.3,3.83487232]
[1739500711969,3.70261,2700.8,2700.3,3.83487232]
[1739500712190,4.48375,2700.9,2700.3,3.83487232]
[1739500712403,4.48375,2700.9,2700.3,7.53805232]
[1739500712695,4.48375,2700.9,2700.3,3.83485232]
[1739500713291,4.48375,2700.9,2700.3,4.58868755]
[1739500713488,3.7026,2700.8,2700.3,4.58868755]
[1739500713869,3.7026,2700.8,2700.3,0.88550755]
[1739500714071,4.48375,2700.9,2700.3,4.58870755]
[1739500714272,3.70224,2701.1,2700.5,3.70294]
[1739500714580,4.4815,2701.2,2700.7,3.70273]
[1739500714782,4.4815,2701.2,2700.6,0.13167232]
[1739500714783,3.7022,2701.1,2700.6,0.13167232]
[1739500714982,3.7022,2701.1,2700.5,4.24646755]
[1739500715487,4.4815,2701.2,2700.6,3.70284]
[1739500715733,4.4815,2701.2,2700.6,3.83451232]
[1739500716507,4.4815,2701.2,2700.6,0.13167232]
[1739500716797,4.4815,2701.2,2700.6,3.83454232]
[1739500717173,9.02185,2701.4,2700.9,0.793]
[1739500717379,3.9433094,2701.5,2701.0,3.83405836]
[1739500717380,0.7894,2701.5,2701.0,3.83405836]
[1739500717580,3.9433094,2701.5,2701.0,0.13183836]
[1739500717776,3.1539094,2701.5,2701.0,0.13183836]
[1739500718105,3.70204,2701.3,2700.6,4.4958]
[1739500718289,4.46657494,2701.3,2700.6,4.53282438]
[1739500718483,3.70208,2701.2,2700.7,0.13183836]
[1739500718683,4.49129,2701.4,2700.7,3.83457836]
[1739500718878,4.49129,2701.4,2700.8,3.70251]
[1739500719282,4.49129,2701.4,2700.9,0.13178122]
[1739500719708,3.70197,2701.3,2700.9,0.13178122]
[1739500719894,3.70207,2701.2,2700.9,0.13178122]
[1739500720098,3.70207,2701.2,2700.6,4.49576]
[1739500720300,3.70207,2701.2,2701.0,0.13227916]
[1739500720500,3.70207,2701.2,2700.6,5.315626]
[1739500720700,3.70197,2701.3,2701.1,0.13227916]
[1739500720902,3.70197,2701.3,2700.7,3.70265]
[1739500721405,3.70197,2701.3,2700.8,0.13227916]
[1739500722206,0.7894,2701.4,2700.8,0.13227916]
[1739500722412,4.45611,2701.6,2701.0,0.8265]
[1739500722567,4.45611,2701.6,2701.0,0.86351897]
[1739500722773,4.45611,2701.6,2701.1,0.1321843]
[1739500723109,0.7546,2701.6,2701.1,0.1321843]
[1739500723331,3.70197,2701.3,2701.1,0.1321843]
[1739500723532,7.40401,2701.3,2700.7,0.8265]
[1739500723687,3.70197,2701.3,2701.2,0.13212106]
[1739500723888,3.70197,2701.3,2700.7,0.8265]
[1739500724087,7.40401,2701.3,2700.7,0.8265]
[1739500724323,7.40401,2701.3,2700.8,0.13212106]
[1739500724688,6.0149694,2701.5,2700.8,0.13212106]
[1739500724901,3.70228,2701.1,2700.8,0.13212106]
[1739500725305,3.70228,2701.1,2700.5,4.51929]
[1739500725505,3.70228,2701.1,2700.9,0.1321843]
[1739500725705,3.70228,2701.1,2700.5,4.51929]
[1739500725920,3.70228,2701.1,2701.0,0.1321843]
[1739500726121,3.70228,2701.1,2700.5,8.74965836]
[1739500726425,3.70199,2701.3,2700.6,3.70286]
[1739500726586,3.70199,2701.3,2700.6,3.8350443]
[1739500726782,3.70199,2701.3,2700.6,0.1321843]
[1739500727029,3.70219,2701.1,2700.6,0.1321843]
[1739500731605,4.75603594,2701.3,2700.6,3.8350543]
[1739500731814,3.70199,2701.3,2700.6,3.8350543]
[1739500732039,7.40403,2701.3,2700.6,3.8350543]
[1739500732245,3.70199,2701.3,2700.6,3.8350543]
[1739500732447,3.70208,2701.2,2700.6,3.8350543]
[1739500732817,3.70208,2701.2,2700.7,3.70271]
[1739500733018,3.70208,2701.2,2700.7,3.83479151]
[1739500734918,4.5254,2701.4,2700.7,7.53745151]
[1739500735117,3.70173,2701.5,2700.9,3.70233]
[1739500735428,3.70141,2701.7,2701.1,0.7632]
[1739500735610,7.40287,2701.7,2701.2,0.64535434]
[1739500735809,3.70141,2701.7,2701.2,0.64535434]
[1739500736009,3.70141,2701.7,2701.3,0.13217638]
[1739500736211,4.51513,2701.9,2701.2,0.64535434]
[1739500736411,3.70113,2701.9,2701.4,0.13217638]
[1739500736638,3.70113,2701.9,2701.2,3.70194]
[1739500736836,3.70132,2701.8,2701.5,0.13217638]
[1739500737026,3.70132,2701.8,2701.2,3.70194]
[1739500737236,3.70132,2701.8,2701.6,0.13217638]
[1739500737413,3.70132,2701.8,2701.2,3.70194]
[1739500737608,3.70132,2701.8,2701.2,4.518677]
[1739500738148,7.40234,2701.9,2701.3,0.13217638]
[1739500738322,3.70124,2701.8,2701.3,0.13217638]
[1739500738727,3.70124,2701.8,2701.2,4.518677]
[1739500738728,3.70147,2701.7,2701.2,0.816737]
[1739500738928,3.70147,2701.7,2701.4,0.13217638]
[1739500739121,3.70147,2701.7,2701.1,0.7632]
[1739500739335,4.50494,2701.6,2701.5,0.13217638]
[1739500739508,0.8034,2701.6,2701.1,0.7632]
[1739500739719,0.8034,2701.6,2701.5,0.13217638]
[1739500739908,4.50491,2701.6,2701.5,0.13217638]
[1739500740105,4.50491,2701.6,2700.4,3.33897718]
[1739500740106,3.7019,2701.4,2700.8,0.8169]
[1739500740349,3.70206,2701.2,2700.8,0.8169]
[1739500740520,3.7019,2701.4,2700.8,0.8169]
[1739500741109,3.7019,2701.4,2700.8,4.51949]
[1739500741656,3.70214,2701.2,2700.8,0.8169]
[1739500741861,3.70237,2701.0,2700.7,0.34271709]
[1739500742644,3.70237,2701.0,2700.5,1.11851709]
[1739500742953,4.51451,2701.2,2700.5,1.67651748]
[1739500743133,4.51451,2701.2,2700.6,3.70278]
[1739500745059,8.21666,2701.2,2700.5,5.03672039]
[1739500745357,4.51451,2701.2,2700.5,5.03672039]
[1739500745662,3.70211,2701.2,2700.6,7.40566]
[1739500745830,3.70211,2701.2,2700.6,8.27960604]
[1739500746361,3.70211,2701.2,2700.6,4.57673604]
[1739500746557,3.70146,2701.7,2700.9,3.70237]
[1739500746558,3.97758,2701.6,2700.9,3.70237]
[1739500746870,3.97758,2701.6,2701.0,3.70222]
[1739500747171,3.70186,2701.4,2700.7,4.47056]
[1739500747322,3.70186,2701.4,2700.8,0.5344506]
[1739500747725,7.40374,2701.4,2700.8,0.5344506]
[1739500747957,3.702,2701.3,2700.8,0.5344506]
[1739500748159,3.70184,2701.4,2700.8,0.5344506]
[1739500748355,0.7535,2701.7,2701.0,0.8139]
[1739500748554,5.32,2701.8,2701.4,3.70176]
[1739500748768,4.49602,2702.0,2701.4,3.70176]
[1739500749072,4.49602,2702.0,2701.4,7.40346]
[1739500749221,4.49602,2702.0,2701.4,7.4034]
[1739500749423,0.7945,2702.2,2701.4,1.60343]
[1739500749618,3.70042,2702.4,2701.8,0.8306]
[1739500749866,4.50754,2702.6,2701.8,0.8306]
[1739500750048,4.50754,2702.6,2701.9,3.70097]
[1739500750049,3.70024,2702.6,2701.9,3.70097]
[1739500750257,3.70012,2702.7,2702.0,3.70095]
[1739500750564,3.69961,2703.0,2702.3,3.70042]
[1739500750919,3.69995,2702.8,2702.2,0.7973]
[1739500751118,3.70002,2702.7,2702.2,0.7973]
[1739500751358,3.69995,2702.8,2702.2,0.7973]
[1739500751660,3.69997,2702.8,2702.2,0.7973]
[1739500751985,3.69997,2702.8,2702.3,0.5238272]
[1739500752333,3.69963,2703.0,2702.3,0.5238272]
[1739500752642,3.69963,2703.0,2702.4,0.03700038]
[1739500752951,4.47404,2703.2,2702.5,3.70026]
[1739500753327,3.69934,2703.2,2702.7,0.784]
[1739500753519,3.69934,2703.2,2702.7,1.61544861]
[1739500753723,0.1517397,2703.4,2702.9,3.69959]
[1739500753923,0.1517397,2703.4,2702.9,4.50952]
[1739500754175,0.1517397,2703.4,2703.0,0.59321154]
[1739500754525,3.8508197,2703.4,2703.0,0.59321154]
[1739500754822,0.1517397,2703.4,2703.0,0.59321154]
[1739500760113,0.1517397,2703.4,2703.0,4.29269154]
[1739500760986,0.1517397,2703.4,2703.0,0.59321154]
[1739500762275,0.1517397,2703.4,2703.1,0.51027515]
[1739500762476,0.1517397,2703.4,2703.1,0.63747698]
[1739500762877,3.8508397,2703.4,2703.1,0.63747698]
[1739500763076,0.1517397,2703.4,2703.1,0.12720183]
[1739500763915,0.1517397,2703.4,2703.3,3.69918]
[1739500764421,0.1517397,2703.4,2703.3,3.82580549]
[1739500764630,0.1517397,2703.4,2703.3,4.62590549]
[1739500764830,0.1517397,2703.4,2703.3,4.66289251]
[1739500765129,0.1517397,2703.4,2703.3,5.49910076]
[1739500765305,0.1517397,2703.4,2703.3,5.46211374]
[1739500769944,0.1517397,2703.4,2703.3,6.19418965]
[1739500772484,0.1517397,2703.4,2703.3,9.78117492]
[1739500772676,0.7835,2704.7,2704.1,0.8155]
[1739500773065,3.69748,2704.6,2704.2,0.57730967]
[1739500773262,0.7835,2704.7,2703.8,0.7921]
[1739500773463,0.7835,2704.7,2703.9,3.69826]
[1739500773663,3.6974,2704.6,2704.0,3.69811]
[1739500773867,0.7835,2704.7,2704.1,3.69798]
[1739500774187,4.48087,2704.7,2704.2,0.12593867]
[1739500774776,0.7835,2704.7,2704.2,0.12593867]
[1739500774981,3.69749,2704.6,2703.9,3.69831]
[1739500775187,3.69767,2704.5,2704.0,0.449041]
[1739500775342,3.69767,2704.5,2704.0,0.57415917]
[1739500775686,0.7835,2704.7,2704.0,0.57415917]
[1739500775889,0.7835,2704.7,2704.3,3.69777]
[1739500776096,0.7835,2704.7,2704.2,3.69789]
[1739500776258,0.7835,2704.7,2704.3,3.69773]
[1739500776689,0.7835,2704.7,2704.2,3.69789]
[1739500776893,0.7835,2704.7,2704.0,3.69814]
[1739500777090,0.7835,2704.7,2704.1,0.1242267]
[1739500777297,3.69757,2704.5,2703.8,8.18897]
[1739500777596,3.69757,2704.5,2703.9,3.8224967]
[1739500778394,3.69757,2704.5,2704.0,3.69821]
[1739500778594,4.48089,2704.7,2704.0,3.69821]
[1739500778777,3.69741,2704.6,2704.1,0.12429767]
[1739500778982,3.69741,2704.6,2704.0,3.69812]
[1739500779154,3.69741,2704.6,2704.2,0.11994271]
[1739500779354,4.48077,2704.7,2704.1,3.69805]
[1739500779554,4.48077,2704.7,2704.3,0.11994271]
[1739500779795,0.7835,2704.7,2704.2,3.69794]
[1739500780160,0.7835,2704.7,2704.3,0.11994271]
[1739500780469,0.7835,2704.7,2704.3,0.38178827]
[1739500781288,0.7835,2704.7,2704.3,4.07950827]
[1739500781687,0.7835,2704.7,2704.4,0.11994271]
[1739500782078,0.7835,2704.7,2704.3,4.07950827]
[1739500783205,4.51202,2704.9,2704.3,4.91040827]
[1739500783877,3.69748,2704.6,2704.0,4.52907]